[Event "Romanian Women Championship 2024"]
[Site "Eforie Nord"]
[Date "2024.02.26"]
[Round "4.11"]
[White "Maria, Lia-Alexandra"]
[Black "Petculescu, Diana-Silvana"]
[Result "1-0"]
[ECO "A18"]
[WhiteElo "1937"]
[BlackElo "1556"]
[Annotator "NA RC"]
[PlyCount "71"]
[EventDate "2024.02.24"]
[EventType "swiss"]
[EventCountry "ROU"]
[SourceTitle "playchess.com"]
[Source "ChessBase"]
[SourceQuality "1"]
[TimeControl "40/5400+30:900+30"]

1. c4 {[%emt 0:00:05]} Nf6 {[%emt 0:00:07]} 2. Nc3 {[%emt 0:00:05]} e6 {[%emt 0:00:17]} 3. e4 {[%emt 0:00:15]} d5 {[%emt 0:02:16]} 4. cxd5 {[%emt 0:12:19]} exd5 {[%emt 0:01:14]} 5. e5 {[%emt 0:00:14]} Nfd7 {[%emt 0:03:14]} 6. d4 {[%emt 0:00:26]} Nb6 {[%emt 0:02:30]} 7. Bd3 {[%emt 0:06:50]} Nc6 {[%emt 0:04:16]} 8. Nge2 {[%emt 0:02:03]} Be6 {[%emt 0:04:12]} 9. a3 {[%emt 0:03:23]} Qd7 {[%emt 0:02:21]} 10. O-O {[%emt 0:00:25]} Be7 {[%emt 0:00:59]} 11. Be3 {[%emt 0:02:51]} h5 {[%emt 0:04:15]} 12. Nf4 {[%emt 0:08:01]} g6 {[%emt 0:06:06]} 13. Kh1 {[%emt 0:06:35]} O-O-O {[%emt 0:06:34]} 14. Nxe6 {[%emt 0:02:44]} Qxe6 {[%emt 0:01:11]} 15. Qc2 {[%emt 0:05:26]} Kb8 {[%emt 0:11:06]} 16. Rac1 {[%emt 0:08:46]} h4 {[%emt 0:04:53]} 17. f4 {[%emt 0:01:59]} f5 {[%emt 0:04:56]} 18. b4 {[%emt 0:05:33]} Rc8 {[%emt 0:03:30]} 19. Nb1 {[%emt 0:02:03]} Qd7 {[%emt 0:11:09]} 20. Nd2 {[%emt 0:05:54]} a5 {[%emt 0:04:16]} 21. b5 {[%emt 0:04:36]} Na7 {[%emt 0:00:15]} 22. Qb2 {[%emt 0:03:28]} a4 {[%emt 0:01:19]} 23. Nb1 {[%emt 0:01:43]} c6 {[%emt 0:01:42]} 24. bxc6 {[%emt 0:01:48]} Rxc6 {[%emt 0:00:09]} 25. Rxc6 {[%emt 0:00:19]} Qxc6 {[%emt 0:00:20]} 26. Rc1 {[%emt 0:00:27]} Nc4 {[%emt 0:01:11]} 27. Bxc4 {[%emt 0:00:39]} dxc4 {[%emt 0:00:11]} 28. Nc3 {[%emt 0:00:03]} h3 {[%emt 0:01:40]} 29. d5 {[%emt 0:00:08]} hxg2+ {[%emt 0:00:26]} 30. Qxg2 {[%emt 0:00:24]} Qe8 {[%emt 0:01:56]} 31. Rb1 {[%emt 0:02:06]} Bd8 {[%emt 0:05:22]} 32. Rb4 {[%emt 0:05:20]} Rh4 {[%emt 0:01:18]} 33. Rxa4 {[%emt 0:06:13]} Nb5 {[%emt 0:00:30]} 34. Rxc4 {[%emt 0:01:24]} Nxa3 {[%emt 0:00:24]} 35. Ra4 {[%emt 0:01:15]} Nb5 {[%emt 0:00:31]} 36. Qa2 {[%emt 0:00:42]} 1-0

[Event "Romanian Women Championship 2024"]
[Site "Eforie Nord"]
[Date "2024.02.26"]
[Round "4.12"]
[White "Badica, Ariana"]
[Black "Paraschiv, Petronela-Alexandra"]
[Result "0-1"]
[ECO "B12"]
[WhiteElo "1494"]
[BlackElo "1875"]
[Annotator "NA RC"]
[PlyCount "86"]
[EventDate "2024.02.24"]
[EventType "swiss"]
[EventCountry "ROU"]
[SourceTitle "playchess.com"]
[Source "ChessBase"]
[SourceQuality "1"]
[TimeControl "40/5400+30:900+30"]

1. e4 {[%emt 0:00:02]} c6 {[%emt 0:00:03]} 2. d4 {[%emt 0:00:06]} d5 {[%emt 0:00:02]} 3. e5 {[%emt 0:00:05]} Bf5 {[%emt 0:00:03]} 4. Nf3 {[%emt 0:00:09]} e6 {[%emt 0:00:10]} 5. Be2 {[%emt 0:00:04]} Ne7 {[%emt 0:00:30]} 6. O-O {[%emt 0:00:13]} Ng6 {[%emt 0:00:22]} 7. b3 {[%emt 0:00:47]} Nd7 {[%emt 0:01:22]} 8. c4 {[%emt 0:00:45]} f6 {[%emt 0:03:54]} 9. exf6 {[%emt 0:01:54]} Nxf6 {[%emt 0:05:59]} 10. Re1 {[%emt 0:03:20]} Bb4 {[%emt 0:10:49]} 11. Bd2 {[%emt 0:00:33]} Bxd2 {[%emt 0:00:33]} 12. Nbxd2 {[%emt 0:00:16]} O-O {[%emt 0:01:01]} 13. c5 {[%emt 0:03:47]} Qc7 {[%emt 0:03:59]} 14. b4 {[%emt 0:03:13]} Rae8 {[%emt 0:03:42]} 15. Ne5 {[%emt 0:10:16]} Nxe5 {[%emt 0:13:45]} 16. dxe5 {[%emt 0:00:07]} Ne4 {[%emt 0:06:10]} 17. Nf3 {[%emt 0:09:24]} Bg4 {[%emt 0:11:12]} 18. Qd4 {[%emt 0:03:36]} Qf7 {[%emt 0:03:30]} 19. h3 {[%emt 0:01:23]} Bh5 {[%emt 0:00:46]} 20. a4 {[%emt 0:02:00]} Qf4 {[%emt 0:03:16]} 21. b5 {[%emt 0:02:00]} Bxf3 {[%emt 0:02:09]} 22. Bxf3 {[%emt 0:00:35]} Nd2 {[%emt 0:01:46]} 23. Qxf4 {[%emt 0:03:11]} Rxf4 {[%emt 0:00:06]} 24. Ra3 {[%emt 0:03:15]} Nxf3+ {[%emt 0:04:37]} 25. gxf3 {[%emt 0:00:20]} Rc4 {[%emt 0:03:01]} 26. bxc6 {[%emt 0:01:02]} bxc6 {[%emt 0:00:27]} 27. Rb1 {[%emt 0:00:39]} Re7 {[%emt 0:03:49]} 28. a5 {[%emt 0:08:45]} Rxc5 {[%emt 0:03:53]} 29. a6 {[%emt 0:00:13]} Kf7 {[%emt 0:02:29]} 30. Rb7 {[%emt 0:02:04]} Rxb7 {[%emt 0:05:28]} 31. axb7 {[%emt 0:00:58]} Rb5 {[%emt 0:00:03]} 32. Rxa7 {[%emt 0:00:25]} Kg6 {[%emt 0:00:05]} 33. Kg2 {[%emt 0:03:40]} Kf5 {[%emt 0:02:04]} 34. b8=Q {[%emt 0:02:31]} Rxb8 {[%emt 0:00:03]} 35. Rxg7 {[%emt 0:00:09]} Kxe5 {[%emt 0:00:32]} 36. Rxh7 {[%emt 0:00:08]} Rg8+ {[%emt 0:01:05]} 37. Kf1 {[%emt 0:00:37]} c5 {[%emt 0:00:18]} 38. Ke2 {[%emt 0:00:24]} c4 {[%emt 0:02:02]} 39. Rh5+ {[%emt 0:00:30]} Kd4 {[%emt 0:00:21]} 40. Rh4+ {[%emt 0:00:00]} Kc3 {[%emt 0:00:00]} 41. Ke3 {[%emt 0:09:12]} e5 {[%emt 0:01:36]} 42. Rh5 {[%emt 0:01:50]} Re8 {[%emt 0:00:53]} 43. f4 {[%emt 0:02:03]} d4+ {[%emt 0:00:13]} 0-1

[Event "Romanian Women Championship 2024"]
[Site "Eforie Nord"]
[Date "2024.02.27"]
[Round "5.1"]
[White "Lehaci, Miruna-Daria"]
[Black "Ciolacu, Alessia-Mihaela"]
[Result "1-0"]
[ECO "D02"]
[WhiteElo "2227"]
[BlackElo "2175"]
[Annotator "TA"]
[PlyCount "75"]
[EventDate "2024.02.24"]
[EventType "swiss"]
[EventCountry "ROU"]
[SourceTitle "playchess.com"]
[Source "ChessBase"]
[SourceQuality "1"]
[TimeControl "40/5400+30:900+30"]

{[%evp 11,75,0,-2,0,8,-1,1,-13,17,-17,6,-35,-41,-55,-50,-87,-29,-18,-25,-57,-56,-53,-33,-46,-18,-16,-19,-18,-16,-13,-29,-28,0,-37,0,0,0,-136,-127,-133,-126,-126,-41,-46,-8,-2,-6,-5,-10,-29,0,0,66,60,83,50,329,347,558,174,695,687,1000,926,4878,4878]} 1. d4 {[%emt 0:00:07]} Nf6 {[%emt 0:00:17]} 2. Bf4 {[%emt 0:00:07]} e6 {[%emt 0:00:18]} 3. e3 {[%emt 0:00:18]} d5 {[%emt 0:00:17]} 4. Nf3 {[%emt 0:00:13]} Bd6 {[%emt 0:00:18]} 5. Ne5 {[%emt 0:00:26]} O-O {[%emt 0:00:31]} 6. Nd2 {[%emt 0:01:07]} c5 {[%emt 0:00:23]} 7. c3 {[%emt 0:00:07]} c4 {[%emt 0:00:08]} 8. Be2 {[%emt 0:09:22]} Qc7 {[%emt 0:02:44]} 9. Bg3 {[%emt 0:07:35] The position is equal.} Nc6 {[%emt 0:04:07]} 10. Nef3 {[%emt 0:03:49]} b5 {[%emt 0:16:52]} 11. a4 {[%emt 0:04:36] Black must now prevent Bxd6.} b4 {[%emt 0:04:03]} 12. Bxd6 {[%emt 0:03:55]} Qxd6 {[%emt 0:00:06]} 13. e4 {[%emt 0:01:19] Threatens to win with e5.} Qc7 {[%emt 0:16:42]} (13... bxc3 $17 14. bxc3 dxe4 (14... Nxe4 15. Nxe4 dxe4 16. Nd2 $11) 15. Nxc4 Qc7) 14. e5 {[%emt 0:10:19]} Nd7 {[%emt 0:01:07]} 15. Rc1 {[%emt 0:02:02]} Qa5 {[%emt 0:10:00]} 16. O-O {[%emt 0:07:34]} bxc3 {[%emt 0:08:45]} 17. bxc3 {[%emt 0:06:12]} Nb6 {[%emt 0:01:08]} 18. Qe1 {[%emt 0:00:33]} Bd7 {[%emt 0:06:06][%cal Of8b8]} (18... Nxa4 19. Ra1 $14) 19. Bd1 {[%emt 0:01:18][%cal Be2d1,Bd1c2,Bc2b1][%mdl 32]} Ne7 {[%emt 0:00:28]} (19... Nxa4 $6 20. Ra1 $16) 20. Bc2 {[%emt 0:00:32]} Bxa4 {[%emt 0:01:01]} (20... Nxa4 $6 21. Ra1 $16) 21. Bb1 {[%emt 0:00:30]} Bd7 {[%emt 0:05:41]} 22. Qe2 {[%emt 0:04:06][%cal Ob1h7] Bxh7+! is the strong threat.} (22. Ng5 $5 h6 23. Nh7 $11) 22... Ng6 {[%emt 0:03:35]} 23. Ng5 {[%emt 0:03:14][%cal Og5h7] Strongly threatening Nxh7!} h6 {[%emt 0:08:08]} 24. Nxe6 {[%emt 0:10:06]} Bxe6 $17 {[%emt 0:00:53]} 25. f4 {[%emt 0:00:03] [#]} Na4 $1 {[%emt 0:03:23]} (25... f5 $6 26. exf6 Rxf6 27. f5 $11) 26. Qe3 {[%emt 0:01:09]} Ne7 {[%emt 0:01:04]} ({Black should play} 26... Bd7 $17 {Hoping for ...f5.} 27. f5 Nxe5 28. dxe5 Qc5) 27. f5 $15 {[%emt 0:00:25] [#]} Bxf5 $1 {[%emt 0:00:26]} 28. Bxf5 {[%emt 0:00:17]} Nxf5 {[%emt 0:00:02]} 29. Rxf5 {[%emt 0:00:06]} Rae8 {[%emt 0:03:01]} 30. Qf3 {[%emt 0:01:05]} Re6 {[%emt 0:02:55]} 31. Nf1 {[%emt 0:02:59]} Nb6 {[%emt 0:00:31]} (31... g6 $11 32. Qg3 Kh7) 32. Ng3 {[%emt 0:00:22][%mdl 1024] White has compensation.} Qa3 {[%emt 0:00:54]} 33. Rf1 {[%emt 0:00:26]} f6 {[%emt 0:00:07][%mdl 8192] Loses the game.} (33... Qe7 $14) 34. Nh5 $18 {[%emt 0:00:36]} Kh7 $2 {[%emt 0:00:41]} (34... Qe7 35. exf6 gxf6) 35. Nf4 $2 {[%emt 0:07:06]} (35. exf6 g6 36. Re5 (36. Ng7 Rd6 $18) 36... Rxe5 37. dxe5) 35... Ree8 $2 {[%emt 0:00:37]} (35... Rc6 36. Nxd5 (36. Nh5 a6 $18) 36... Nxd5) 36. exf6 {[%emt 0:00:19] White is clearly winning.} ({Worse is} 36. Nxd5 Nxd5 37. Qxd5 fxe5 38. Rxf8 Rxf8 39. Rxf8 (39. Qxe5 Rxf1+ 40. Kxf1 Qc1+ 41. Kf2 Qc2+ 42. Qe2 Qxc3 $11) 39... Qxf8 $11) 36... gxf6 {[%emt 0:00:39]} 37. Nh5 {[%emt 0:00:49]} ({Not} 37. Nxd5 Nxd5 38. Rxd5 Qe7 $18) 37... Nd7 {[%emt 0:00:29]} 38. Rxd5 {[%emt 0:00:05] Weighted Error Value: White=0.34/Black=0.63.  Loses game:     	---       	Black=1      Mistake:       	White=2     	Black=5      Inaccurate:     	White=6     	Black=6      OK:         	White=9     	Black=5      Best:        	White=3     	Black=2      Strong:       	---       	Black=1} 1-0

[Event "Romanian Women Championship 2024"]
[Site "Eforie Nord"]
[Date "2024.02.27"]
[Round "5.2"]
[White "Vorniceanu, Alina"]
[Black "Peptan, Corina-Isabela"]
[Result "0-1"]
[ECO "B41"]
[WhiteElo "1476"]
[BlackElo "2314"]
[Annotator "TA"]
[PlyCount "116"]
[EventDate "2024.02.24"]
[EventType "swiss"]
[EventCountry "ROU"]
[SourceTitle "playchess.com"]
[Source "ChessBase"]
[SourceQuality "1"]
[TimeControl "40/5400+30:900+30"]

{[%evp 23,116,45,52,38,62,26,26,6,49,22,60,38,42,46,41,43,39,34,25,27,37,29,39,42,53,-67,-76,-62,-52,-66,-60,-126,-126,-137,-140,-129,-135,-157,-155,-174,-177,-179,-183,-185,-182,-218,-227,-220,-218,-237,-235,-341,-280,-318,-362,-342,-326,-342,-349,-348,-325,-394,-368,-510,-509,-560,-498,-381,-381,-562,-516,-646,-645,-597,-615,-1040,-790,-862,-506,-597,-607,-616,-575,-524,-469,-1501,-1378,-1572,-1533,-4714,-3976,-29948,-4894,-5791,-5738]} 1. e4 {[%emt 0:00:02]} c5 {[%emt 0:01:42]} 2. Nf3 {[%emt 0:00:09]} e6 {[%emt 0:00:54]} 3. d4 {[%emt 0:00:07]} cxd4 {[%emt 0:00:20]} 4. Nxd4 {[%emt 0:00:06]} a6 {[%emt 0:00:02]} 5. c4 {[%emt 0:00:24]} Nf6 {[%emt 0:01:08]} 6. Nc3 {[%emt 0:00:35]} Qc7 {[%emt 0:01:08]} 7. Be2 {[%emt 0:02:52]} b6 {[%emt 0:01:14]} 8. Be3 {[%emt 0:01:13]} Bb7 {[%emt 0:00:11]} 9. f3 {[%emt 0:00:21]} Be7 {[%emt 0:13:57]} 10. O-O {[%emt 0:00:32]} d6 {[%emt 0:00:24]} 11. Qd2 {[%emt 0:01:33]} O-O {[%emt 0:00:24]} 12. Rfc1 {[%emt 0:04:40]} Nbd7 {[%emt 0:01:54]} 13. Na4 {[%emt 0:03:30]} Rfc8 {[%emt 0:03:16]} 14. Qe1 {[%emt 0:02:57]} Qd8 {[%emt 0:01:03]} 15. b3 {[%emt 0:05:18] White has an edge.} (15. Qg3 {keeps more tension.} Ne5 16. Rc2 Nfd7 17. Rd1) 15... Rab8 {[%emt 0:10:28]} 16. Kh1 {[%emt 0:10:53]} Ba8 {[%emt 0:03:36]} 17. Qf2 {[%emt 0:09:01]} Ne8 {[%emt 0:05:31]} 18. Rd1 {[%emt 0:05:50]} Bg5 {[%emt 0:02:38]} 19. Rac1 {[%emt 0:04:49]} h6 {[%emt 0:01:25]} 20. Bf1 {[%emt 0:01:26]} Bxe3 {[%emt 0:08:23]} 21. Qxe3 {[%emt 0:00:07]} Qg5 {[%emt 0:02:00]} 22. f4 {[%emt 0:24:14]} Qe7 {[%emt 0:00:18]} 23. Be2 {[%emt 0:03:25]} Rc7 {[%emt 0:04:45]} 24. e5 {[%emt 0:05:22]} ({Better is} 24. Kg1 $14) 24... dxe5 $1 $15 {[%emt 0:00:31]} 25. fxe5 {[%emt 0:00:08]} Qg5 $1 {[%emt 0:00:56]} 26. Qxg5 {[%emt 0:04:52]} hxg5 {[%emt 0:00:01]} 27. Bf3 {[%emt 0:00:19] White is now going downhill.} (27. b4 $15) 27... Bxf3 $17 {[%emt 0:08:32]} 28. Nxf3 {[%emt 0:00:06][%cal Oh2h3]} g4 {[%emt 0:00:19]} 29. Ng5 {[%emt 0:00:17]} Nxe5 {[%emt 0:01:19]} 30. Rd4 {[%emt 0:00:13]} b5 {[%emt 0:04:45]} 31. Nb2 {[%emt 0:00:06]} bxc4 {[%emt 0:00:06]} 32. Nxc4 {[%emt 0:00:08]} Rbc8 {[%emt 0:02:02]} 33. Kg1 {[%emt 0:01:51]} Nf6 {[%emt 0:02:03]} 34. Rcd1 {[%emt 0:01:52]} Nxc4 {[%emt 0:02:48]} 35. bxc4 {[%emt 0:02:52]} Kf8 {[%emt 0:00:09]} (35... Rxc4 $2 {perishes.} 36. Rxc4 Rf8 37. Rdc1 $18) 36. Rc1 {[%emt 0:02:11]} Ke7 {[%emt 0:02:57]} 37. Ne4 {[%emt 0:01:13]} (37. h4 $142) 37... Nxe4 {[%emt 0:01:07]} 38. Rxe4 $19 {[%emt 0:00:08][%mdl 4096] Endgame. KRR-KRR} f5 {[%emt 0:00:03]} 39. Re5 {[%emt 0:02:21]} Rc5 {[%emt 0:00:30]} ({Don't do} 39... Rxc4 40. Rce1 $19) 40. Rxc5 {[%emt 0:00:00]} Rxc5 {[%emt 0:00:00] KR-KR} 41. Kf2 {[%emt 0:01:10]} Kd6 {[%emt 0:00:49]} 42. Ke3 {[%emt 0:00:30]} Ra5 {[%emt 0:05:34]} 43. Rc2 {[%emt 0:00:28]} e5 {[%emt 0:00:20]} 44. Kf2 {[%emt 0:05:07]} Ra3 {[%emt 0:25:58]} 45. Rd2+ Ke6 46. c5 (46. g3 {was worth a try.}) 46... e4 47. Rc2 {[#] Strongly threatening c6.} Kd7 48. c6+ Kc7 49. g3 g6 {Threatens to win with ...g5.} 50. Ke2 Rd3 {[#] White must now prevent ...g5.} 51. Kf2 Rd6 52. Ke3 Rxc6 53. Rd2 Rc3+ 54. Kf4 (54. Kd4 $142 Rf3 55. Ke5) 54... e3 55. Re2 Kd6 56. Kg5 Ke5 57. Kxg6 Ke4 {( -> ...Kf3)} 58. Rb2 Kf3 {[%emt 0:00:00] Weighted Error Value: White=0.94/Black=0.23 (precise) .  Mistake:       	White=5     	---        Inaccurate:     	White=3     	Black=2      OK:         	White=11    	Black=20     Best:        	---       	Black=4      Strong:       	---       	Black=2} 0-1

[Event "Romanian Women Championship 2024"]
[Site "Eforie Nord"]
[Date "2024.02.27"]
[Round "5.3"]
[White "Obada, Ema"]
[Black "Cosma, Elena-Luminita"]
[Result "0-1"]
[ECO "C07"]
[WhiteElo "1969"]
[BlackElo "2236"]
[Annotator "RC"]
[PlyCount "116"]
[EventDate "2024.02.24"]
[EventType "swiss"]
[EventCountry "ROU"]
[SourceTitle "playchess.com"]
[Source "ChessBase"]
[SourceQuality "1"]
[TimeControl "40/5400+30:900+30"]

1. e4 {[%emt 0:00:03]} e6 {[%emt 0:00:12]} 2. d4 {[%emt 0:00:13]} d5 {[%emt 0:00:07]} 3. Nd2 {[%emt 0:00:07]} c5 {[%emt 0:00:09]} 4. Ngf3 {[%emt 0:00:06]} cxd4 {[%emt 0:00:09]} 5. Nxd4 {[%emt 0:00:07]} Nc6 {[%emt 0:00:10]} 6. Bb5 {[%emt 0:00:09]} Bd7 {[%emt 0:00:10]} 7. Nxc6 {[%emt 0:00:10]} bxc6 {[%emt 0:00:05]} 8. Bd3 {[%emt 0:00:07]} Ne7 {[%emt 0:00:06]} 9. O-O {[%emt 0:02:53]} Ng6 {[%emt 0:00:18]} 10. Nf3 {[%emt 0:00:18]} Bd6 {[%emt 0:08:40]} 11. Re1 {[%emt 0:05:04]} Qb8 {[%emt 0:12:15]} 12. c4 {[%emt 0:12:56]} d4 {[%emt 0:08:20]} 13. Nxd4 {[%emt 0:28:11]} Bxh2+ {[%emt 0:00:09]} 14. Kh1 {[%emt 0:02:33]} Bf4 {[%emt 0:01:27]} 15. Nf3 {[%emt 0:17:51]} e5 {[%emt 0:06:42]} 16. Bf1 {[%emt 0:08:11]} Bg4 {[%emt 0:09:04]} 17. b3 {[%emt 0:02:52]} O-O {[%emt 0:06:19]} 18. Be2 {[%emt 0:04:16]} Qb6 {[%emt 0:05:49]} 19. Kg1 {[%emt 0:03:33]} Rad8 {[%emt 0:00:40]} 20. Qc2 {[%emt 0:00:08]} Bxc1 {[%emt 0:06:19]} 21. c5 {[%emt 0:01:55]} Qb4 {[%emt 0:02:17]} 22. Rexc1 {[%emt 0:01:34]} Nf4 {[%emt 0:02:47]} 23. Qc4 {[%emt 0:03:30]} a5 {[%emt 0:16:21]} 24. Qxb4 {[%emt 0:01:56]} axb4 {[%emt 0:00:06]} 25. Kf1 {[%emt 0:00:31]} Bxf3 {[%emt 0:01:44]} 26. Bxf3 {[%emt 0:00:07]} Rd4 {[%emt 0:03:13]} 27. g3 {[%emt 0:01:31]} Ne6 {[%emt 0:00:30]} 28. Bg4 {[%emt 0:00:25]} Ng5 {[%emt 0:03:02]} 29. f3 {[%emt 0:00:24]} g6 {[%emt 0:00:13]} 30. Rd1 {[%emt 0:01:04]} Rfd8 {[%emt 0:00:52]} 31. Rxd4 {[%emt 0:00:31]} Rxd4 {[%emt 0:00:13]} 32. Ke2 {[%emt 0:00:50]} h5 {[%emt 0:00:49]} 33. Bc8 {[%emt 0:00:03]} Rd8 {[%emt 0:00:05]} 34. Bb7 {[%emt 0:00:05]} Ne6 {[%emt 0:00:04]} 35. Ba6 {[%emt 0:01:44]} Nd4+ {[%emt 0:01:37]} 36. Kf2 {[%emt 0:00:06]} Nc2 {[%emt 0:00:26]} 37. Rc1 {[%emt 0:00:19]} Rd2+ {[%emt 0:00:14]} 38. Kf1 {[%emt 0:01:13]} Nd4 {[%emt 0:00:43]} 39. Rc4 {[%emt 0:01:00]} Rxa2 {[%emt 0:00:38]} 40. Bb7 {[%emt 0:00:00]} Ra7 {[%emt 0:00:00]} 41. Rxb4 {[%emt 0:00:53]} Ra5 {[%emt 0:07:16]} 42. f4 f6 {[%emt 0:00:30]} 43. fxe5 fxe5 {[%emt 0:00:30]} 44. Rb6 Rxc5 {[%emt 0:00:30]} 45. Ba6 Rc3 {[%emt 0:00:30]} 46. Kg2 Kg7 {[%emt 0:00:30]} 47. Bc4 Kf6 {[%emt 0:00:30]} 48. Rb8 Re3 {[%emt 0:00:30]} 49. Rf8+ Kg5 {[%emt 0:00:30]} 50. Rg8 Kf6 {[%emt 0:00:30]} 51. Rf8+ Kg7 {[%emt 0:00:30]} 52. Rg8+ Kh7 {[%emt 0:00:30]} 53. Bf7 Rxe4 {[%emt 0:00:30]} 54. Rxg6 Re2+ {[%emt 0:00:30]} 55. Kh3 Rf2 {[%emt 0:00:30]} 56. Rg5 Rxf7 {[%emt 0:00:30]} 57. Rxh5+ Kg6 {[%emt 0:00:30]} 58. Rxe5 Nxb3 {[%emt 0:00:30]} 0-1

[Event "Romanian Women Championship 2024"]
[Site "Eforie Nord"]
[Date "2024.02.27"]
[Round "5.5"]
[White "Sandu, Mihaela"]
[Black "Stanciu, Andreea-Briana"]
[Result "1-0"]
[ECO "B12"]
[WhiteElo "2265"]
[BlackElo "1960"]
[Annotator "TA"]
[PlyCount "57"]
[EventDate "2024.02.24"]
[EventType "swiss"]
[EventCountry "ROU"]
[SourceTitle "playchess.com"]
[Source "ChessBase"]
[SourceQuality "1"]
[TimeControl "40/5400+30:900+30"]

{[%evp 13,57,10,16,31,33,30,17,10,18,-33,-35,-30,-25,-23,0,0,11,7,16,4,0,20,8,0,93,96,183,171,491,425,429,422,386,400,1239,1146,1158,1110,29982,1147,1143,879,906,743,1622,868]} 1. e4 {[%emt 0:00:04]} c6 {[%emt 0:01:11]} 2. d4 {[%emt 0:00:04]} d5 {[%emt 0:00:04]} 3. e5 {[%emt 0:00:03]} Bf5 {[%emt 0:00:05]} 4. h4 {[%emt 0:00:05]} h6 {[%emt 0:00:04]} 5. g4 {[%emt 0:00:25]} Be4 {[%emt 0:00:05]} 6. f3 {[%emt 0:00:04][%cal Bf2f3,Bf3f4,Bf4e5][%mdl 32]} Bh7 {[%emt 0:00:04]} 7. e6 {[%emt 0:00:59]} Qd6 {[%emt 0:00:04]} 8. exf7+ {[%emt 0:00:54]} Kxf7 {[%emt 0:00:06]} 9. f4 {[%emt 0:00:06] Hoping for Nf3.} Nf6 {[%emt 0:00:38]} 10. Nf3 {[%emt 0:00:21] The position is equal.} Nxg4 {[%emt 1:33:09]} 11. Ne5+ ({White should try} 11. h5 $11) 11... Nxe5 $15 {[%emt 0:00:00]} 12. fxe5 {[%emt 0:01:02]} Qg6 {[%emt 0:00:00] [#] ...Qe4+ is the strong threat.} 13. Be3 {[%emt 0:19:49]} e6 {[%emt 0:00:00]} 14. Bd3 {[%emt 0:27:59]} Qg3+ {[%emt 0:00:00]} 15. Bf2 {[%emt 0:02:51]} Qf4 {[%emt 0:00:00]} 16. Bxh7 {[%emt 0:23:11]} Rxh7 {[%emt 0:00:00]} 17. Nd2 {[%emt 0:00:11] aiming for Rh3.} Kg8 {[%emt 0:00:00]} 18. Qe2 {[%emt 0:02:38]} g6 {[%emt 0:00:00]} (18... c5 $11 {remains equal.}) 19. O-O-O $16 {[%emt 0:00:46][%mdl 1024] White has strong compensation.} Be7 {[%emt 0:00:00]} (19... Qf5 $16) 20. Rdf1 {[%emt 0:00:47]} h5 $2 {[%emt 0:00:00]} (20... Qf7 21. Be3 Qe8) 21. Rhg1 {[%emt 0:02:24][%cal Bh1g1,Bg1g6,Bg6f6][%mdl 32]} Qf7 {[%emt 0:00:00]} 22. Be3 {[%emt 0:01:35]} Qe8 {[%emt 0:00:00] [#]} 23. Qd3 $1 {[%emt 0:03:23]} Bxh4 {[%emt 0:00:00]} (23... Rg7 $142 24. Bh6 c5 25. Bxg7 Kxg7) 24. Rxg6+ {[%emt 0:00:48]} Kh8 {[%emt 0:00:00]} 25. Nf3 {[%emt 0:01:52]} Bd8 {[%emt 0:00:00] Black is weak on the dark squares} 26. Bg5 {[%emt 0:01:15]} (26. Bh6 $142 Rf7 27. Rfg1 Rf5 28. Bg7+ Kg8 29. Bf6+ Qxg6 30. Rxg6+ Kf7 31. Rg7+ Ke8 32. Qa3 (32. Rxb7 Bxf6 33. exf6 Nd7 $18)) 26... Nd7 {[%emt 0:00:00] White is clearly winning.} 27. Bxd8 {[%emt 0:00:16]} Rxd8 {[%emt 0:00:00]} 28. Ng5 {[%emt 0:00:09][%csl LRe6,LRh7]} Nf8 {[%emt 0:00:00]} 29. Rgf6 {[%emt 0:00:21] Weighted Error Value: White=0.15 (very precise) /Black=0.75.  Mistake:       	White=1     	Black=4      OK:         	White=7     	Black=8      Best:        	White=1     	Black=1      Strong:       	White=1     	---} 1-0